bitfinex/quotes_ETHUSD_20250213
["timestamp","ask_amount","ask_price","bid_price","bid_amount"]
[1739486941327,2.247,2676.6,2676.5,0.08102921]
[1739486941529,2.247,2676.4,2676.1,7.5412]
[1739486943919,2.247,2676.3,2676.1,11.27784]
[1739486944422,2.247,2676.3,2676.1,11.27786]
[1739486944933,2.247,2676.5,2676.1,11.27786]
[1739486945114,2.247,2676.5,2676.1,7.54114]
[1739486946730,2.247,2676.5,2676.2,3.73663]
[1739486946926,2.247,2676.5,2676.1,0.8045]
[1739486947119,2.247,2676.5,2676.1,4.54119]
[1739486948116,2.247,2676.5,2676.1,8.27789]
[1739486949058,2.247,2676.5,2676.1,4.54119]
[1739486950117,5.98323,2676.5,2676.1,4.54119]
[1739486951729,2.247,2676.3,2676.1,0.8045]
[1739486952045,5.9835,2676.3,2675.9,4.53014]
[1739486952725,5.9835,2676.3,2676.0,0.07851246]
[1739486953858,2.2545,2676.1,2676.0,0.07851246]
[1739486954022,4.36018917,2676.1,2676.0,0.07851246]
[1739486954222,0.0075,2676.0,2675.4,4.53076]
[1739486954461,2.247,2675.9,2675.5,4.190686]
[1739486959511,5.98407,2675.9,2675.5,3.73761]
[1739486967709,5.98407,2675.9,2675.6,0.07977376]
[1739486968693,2.247,2675.7,2675.6,0.07977376]
[1739486970861,5.98433,2675.7,2675.6,0.07977376]
[1739486971383,6.34303,2675.7,2675.4,3.0]
[1739486971905,6.34303,2675.7,2675.5,0.07986934]
[1739486980100,5.98447,2675.6,2675.5,0.07986934]
[1739486980596,2.247,2675.4,2675.2,3.0]
[1739486982486,2.6057,2675.4,2675.2,3.0]
[1739486982806,6.34346,2675.4,2675.3,0.08023256]
[1739486983304,6.34346,2675.4,2675.2,3.0]
[1739486983604,6.34346,2675.4,2675.3,0.08023256]
[1739486983999,6.34346,2675.4,2675.2,3.0]
[1739486984209,6.34346,2675.4,2675.3,0.08023256]
[1739486984609,6.34346,2675.4,2675.2,3.0]
[1739486984822,6.34346,2675.4,2675.3,0.08023256]
[1739486985303,6.34346,2675.4,2675.2,3.0]
[1739486985510,6.34346,2675.4,2675.3,0.08023256]
[1739486985810,6.34346,2675.4,2675.2,3.0]
[1739486986104,6.34346,2675.4,2675.3,0.08023256]
[1739486986409,6.34346,2675.4,2675.2,3.0]
[1739486986806,6.34346,2675.4,2675.3,0.08023256]
[1739486987213,6.34346,2675.4,2675.2,3.0]
[1739486987384,6.34346,2675.4,2675.3,0.08023256]
[1739486987566,6.34346,2675.4,2675.2,3.0]
[1739486987770,6.34346,2675.4,2675.3,0.08023256]
[1739486987997,6.34346,2675.4,2675.2,3.0]
[1739486988197,6.34346,2675.4,2675.3,0.08023256]
[1739486988398,6.34346,2675.4,2675.2,3.0]
[1739486988569,6.34346,2675.4,2675.3,0.08023256]
[1739486988770,6.34346,2675.4,2675.2,3.0]
[1739486988997,6.34346,2675.4,2675.3,0.08023256]
[1739486989209,6.34346,2675.4,2675.2,3.0]
[1739486989613,6.34346,2675.4,2675.3,0.08023256]
[1739486989789,6.35096,2675.4,2675.3,0.08023256]
[1739486989992,6.35096,2675.4,2675.0,3.7841]
[1739486990207,6.35096,2675.4,2675.1,0.08023256]
[1739486995333,2.247,2675.2,2675.1,0.08023256]
[1739486999733,2.247,2675.2,2674.9,3.73844]
[1739486999896,2.247,2675.2,2675.1,0.08067233]
[1739487000114,2.247,2675.2,2674.9,3.73844]
[1739487000315,2.247,2675.2,2675.1,0.08067233]
[1739487000538,2.247,2675.2,2674.9,3.73844]
[1739487000739,2.247,2675.2,2675.1,0.08067233]
[1739487000944,2.247,2675.2,2674.9,3.73844]
[1739487001148,2.247,2675.2,2675.1,0.08067233]
[1739487001308,2.247,2675.2,2674.8,7.51471]
[1739487001908,2.247,2675.2,2674.9,0.08067233]
[1739487002134,0.0075,2675.2,2674.9,0.08067233]
[1739487002310,2.247,2675.1,2674.9,0.08067233]
[1739487010460,2.6057,2675.1,2674.9,0.08067233]
[1739487012431,1.74698917,2675.0,2674.9,0.08067233]
[1739487012657,2.247,2674.7,2674.6,0.7841]
[1739487012878,5.98573,2674.7,2674.6,0.7841]
[1739487013182,5.98573,2674.7,2674.6,0.08102611]
[1739487013550,5.98573,2674.7,2674.6,0.08124607]
[1739487014587,5.98573,2674.7,2674.6,0.08152339]
[1739487015240,3.73936,2674.3,2674.1,0.7514]
[1739487015443,7.47876,2674.3,2674.1,0.7514]
[1739487015768,7.47876,2674.3,2674.2,0.07877307]
[1739487015769,3.73936,2674.3,2674.2,0.07877307]
[1739487015949,5.98636,2674.3,2674.2,0.07877307]
[1739487017180,7.73334917,2674.3,2674.2,0.07877307]
[1739487017741,7.74834917,2674.3,2674.2,0.07877307]
[1739487017940,6.36006,2674.3,2673.7,3.74012]
[1739487018145,2.247,2673.9,2673.7,3.74012]
[1739487018380,2.247,2673.9,2673.8,0.07877307]
[1739487018586,2.247,2673.9,2673.6,0.7514]
[1739487018806,2.247,2673.9,2673.7,0.07877307]
[1739487020601,5.98686,2673.9,2673.7,0.07877307]
[1739487025068,3.99398917,2673.8,2673.7,0.07877307]
[1739487026400,7.73397917,2673.8,2673.7,0.07877307]
[1739487030168,7.73397917,2673.8,2673.4,0.8116]
[1739487030169,5.98741,2673.5,2673.4,0.8116]
[1739487030373,5.98761,2673.4,2673.0,0.7608]
[1739487030605,5.98761,2673.4,2673.0,1.65869296]
[1739487030809,5.48770917,2673.3,2673.0,1.65869296]
[1739487030999,7.73470917,2673.3,2673.0,0.7608]
[1739487032096,3.99398917,2673.1,2673.0,0.7608]
[1739487032277,3.99398917,2673.1,2672.9,3.0]
[1739487033889,3.99398917,2673.1,2672.8,0.8056]
[1739487034091,3.99398917,2672.9,2672.8,0.8056]
[1739487035083,3.99398917,2672.9,2672.7,3.0]
[1739487036232,3.99398917,2672.9,2672.3,0.8155]
[1739487036233,7.73532917,2672.9,2672.3,0.8155]
[1739487036408,0.3587,2673.2,2672.3,0.8155]
[1739487036409,2.247,2672.4,2672.3,0.8155]
[1739487038900,2.247,2672.4,2672.3,4.55759]
[1739487039919,2.247,2672.4,2672.2,3.74221]
[1739487040327,2.247,2672.4,2672.2,7.48437]
[1739487040509,1.74698917,2672.5,2672.0,0.8172]
[1739487040825,3.99398917,2672.5,2672.2,3.74216]
[1739487041624,1.74698917,2672.3,2672.1,3.0]
[1739487042632,1.74698917,2672.3,2672.2,0.12938392]
[1739487046703,3.99398917,2672.3,2672.2,0.12938392]
[1739487047739,8.09477917,2672.3,2672.2,0.12938392]
[1739487048103,3.74269,2671.9,2671.6,0.8272]
[1739487048437,3.74269,2671.9,2671.7,0.13016853]
[1739487048438,1.74698917,2671.9,2671.7,0.13016853]
[1739487049440,3.74279,2671.8,2671.7,0.13016853]
[1739487049802,5.48965917,2671.9,2671.7,0.13016853]
[1739487050159,0.3587,2671.8,2671.7,0.13016853]
[1739487050462,0.3587,2671.8,2671.4,3.7433]
[1739487050623,1.74698917,2671.7,2671.5,0.13049395]
[1739487051174,4.01107,2671.6,2671.5,0.13049395]
[1739487051320,6.26557,2671.6,2671.5,0.13049395]
[1739487051640,3.74324,2671.5,2671.1,3.0]
[1739487051817,1.74698917,2671.4,2671.2,0.12628026]
[1739487052284,0.3587,2671.3,2671.2,0.12628026]
[1739487052442,4.10219,2671.3,2671.2,0.12628026]
[1739487052617,5.99093,2671.0,2670.7,0.7803]
[1739487052824,5.99093,2671.0,2670.5,0.7592]
[1739487052825,3.99398917,2670.8,2670.5,0.7592]
[1739487053223,3.99398917,2670.8,2670.5,4.209588]
[1739487053520,3.99398917,2670.8,2670.5,3.7592]
[1739487053719,2.247,2670.8,2670.5,3.7592]
[1739487053933,2.247,2670.9,2670.5,3.7592]
[1739487054317,5.99107,2670.9,2670.5,0.7592]
[1739487054523,6.34977,2670.9,2670.5,3.0]
[1739487055934,2.247,2670.9,2670.4,3.74473]
[1739487056131,2.247,2670.9,2670.5,3.0]
[1739487056755,2.247,2670.9,2670.6,0.7846]
[1739487056963,3.75118,2671.2,2670.7,3.74433]
[1739487056964,2.247,2671.2,2670.7,3.74433]
[1739487057149,2.247,2671.3,2671.0,3.74384]
[1739487057335,0.268,2671.2,2671.0,3.74384]
[1739487057535,0.268,2671.4,2671.1,0.7846]
[1739487057835,0.268,2671.4,2671.1,4.652198]
[1739487058022,0.268,2671.4,2671.2,3.74363]
[1739487058225,0.268,2671.4,2671.3,0.12352237]
[1739487058587,0.268,2671.4,2671.2,3.74363]
[1739487058731,10.24729083,2671.4,2671.3,0.12349368]
[1739487059059,19.61479083,2671.4,2670.5,0.8331]
[1739487059263,3.74413,2670.9,2670.6,0.11908977]
[1739487059434,5.99091,2671.1,2670.6,3.11908977]
[1739487059623,3.74407,2670.9,2670.6,3.11908977]
[1739487059829,2.247,2670.9,2670.6,3.11908977]
[1739487060168,6.34992,2670.8,2670.6,0.11908977]
[1739487060364,2.247,2670.8,2670.6,0.11908977]
[1739487060554,5.99124,2670.8,2670.4,3.0]
[1739487060752,2.247,2670.8,2670.7,0.11939525]
[1739487060925,2.247,2670.8,2670.5,0.8331]
[1739487061127,3.74408,2670.9,2670.7,0.11939525]
[1739487061328,3.74408,2670.9,2670.5,0.8331]
[1739487061630,5.86224083,2671.0,2670.5,4.57762]
[1739487061872,5.86224083,2671.0,2670.6,0.11939525]
[1739487062564,2.247,2671.0,2670.6,4.35201075]
[1739487062976,3.74377,2671.1,2670.6,8.09640075]
[1739487063142,5.99064,2671.2,2670.7,0.55]
[1739487063473,3.74392,2671.0,2670.7,0.55]
[1739487063670,3.74392,2671.0,2670.8,0.11939525]
[1739487063671,7.48792,2671.0,2670.8,0.11939525]
[1739487063885,7.48792,2671.0,2670.7,0.55]
[1739487064051,3.74406,2670.9,2670.8,0.11939525]
[1739487064233,3.74406,2670.9,2670.6,0.8133]
[1739487064434,3.74406,2670.9,2670.7,0.11939525]
[1739487064934,5.99092,2671.0,2670.7,0.11939525]
[1739487065601,9.73496,2671.0,2670.7,0.11939525]
[1739487065768,5.99092,2671.0,2670.7,0.11939525]
[1739487066281,9.73492,2671.0,2670.7,0.11939525]
[1739487067211,5.99092,2671.0,2670.7,0.11939525]
[1739487067657,9.73493,2671.0,2670.7,0.11939525]
[1739487067859,5.99092,2671.0,2670.7,0.11939525]
[1739487068193,9.73493,2671.0,2670.7,0.11939525]
[1739487069911,15.05493,2671.0,2670.7,0.11939525]
[1739487072040,5.32,2671.0,2670.7,0.11939525]
[1739487072243,5.32,2671.0,2670.7,3.86366525]
[1739487072374,5.32,2671.0,2670.7,3.74427]
[1739487072577,5.32,2671.0,2670.8,0.11939525]
[1739487072885,5.32,2671.0,2670.6,0.8133]
[1739487073092,11.31093,2671.0,2670.7,0.11939525]
[1739487073471,7.567,2671.0,2670.7,0.11939525]
[1739487073685,11.31097,2671.0,2670.7,0.11939525]
[1739487073887,15.05501,2671.0,2670.7,0.11939525]
[1739487074076,11.31097,2671.0,2670.7,0.11939525]
[1739487074872,2.247,2670.8,2670.7,0.11939525]
[1739487078414,6.34989,2670.8,2670.7,0.11939525]
[1739487078573,6.36489,2670.8,2670.7,0.11939525]
[1739487078776,5.99163,2670.5,2670.1,4.5444]
[1739487079275,5.99163,2670.5,2670.2,0.11985351]
[1739487082396,0.0075,2670.4,2670.2,0.11985351]
[1739487082637,5.99189,2670.3,2669.9,0.8257]
[1739487082849,5.99189,2670.3,2670.0,0.11985351]
[1739487083137,5.99215,2670.2,2670.0,0.11985351]
[1739487083353,11.31215,2670.2,2670.0,0.11985351]
[1739487085723,5.99967,2670.1,2670.0,0.11985351]
[1739487085930,2.2545,2670.1,2670.0,0.11985351]
[1739487086261,2.2545,2670.1,2669.7,3.74573]
[1739487086598,2.2545,2670.1,2669.8,0.1208276]
[1739487086802,2.2545,2670.1,2669.7,3.74573]
[1739487087230,2.2545,2670.1,2669.8,0.1208276]
[1739487087498,2.247,2669.9,2669.6,0.822]
[1739487087723,5.99247,2669.9,2669.7,0.1208276]
[1739487088267,2.247,2669.9,2669.7,0.1208276]
[1739487090140,2.247,2670.0,2669.7,0.1208276]
[1739487090370,2.247,2670.0,2669.7,4.63536236]
[1739487090670,5.32,2670.1,2669.7,0.88970236]
[1739487090832,5.32,2670.1,2669.8,0.7946]
[1739487091234,5.32,2670.1,2669.9,0.1208276]
[1739487092671,7.567,2670.1,2669.9,0.1208276]
[1739487096375,11.3122,2670.1,2669.9,0.1208276]
[1739487096882,7.567,2670.1,2669.9,0.1208276]
[1739487097043,7.567,2670.1,2669.9,0.7864]
[1739487097236,7.567,2670.1,2670.0,0.12116196]
[1739487098163,11.31217,2670.1,2670.0,0.12116196]
[1739487098540,11.31217,2670.1,2669.7,0.7864]
[1739487099175,11.31217,2670.1,2669.8,0.12116196]
[1739487099379,2.247,2669.9,2669.8,0.12116196]
[1739487099543,2.247,2669.9,2669.4,11.27335]
[1739487099879,7.567,2669.9,2669.5,3.74601]
[1739487100184,7.567,2669.9,2669.6,0.12116196]
[1739487105377,7.567,2669.9,2669.6,3.74586]
[1739487105673,7.567,2669.9,2669.7,0.12116196]
[1739487111789,5.32,2669.9,2669.8,4.50959]
[1739487112080,5.32,2669.9,2669.8,4.63076149]
[1739487112460,5.32,2669.9,2669.8,8.46840064]
[1739487112639,5.32,2669.9,2669.8,9.01840064]
[1739487112847,7.567,2670.5,2670.0,0.764]
[1739487113086,7.567,2670.5,2670.4,0.764]
[1739487113643,7.567,2670.5,2670.4,0.88546764]
[1739487116625,5.32,2670.5,2670.4,0.88546764]
[1739487116830,5.32,2670.5,2670.4,4.63021764]
[1739487117131,5.32,2670.5,2670.4,0.88546764]
[1739487117493,7.567,2670.6,2670.4,0.88546764]
[1739487119504,5.32,2670.6,2670.4,0.88546764]
[1739487119845,7.567,2670.6,2670.4,0.88546764]
[1739487121645,7.567,2670.6,2670.4,0.12146764]
[1739487123352,7.567,2670.6,2670.4,3.86613764]
[1739487123676,5.32,2670.6,2670.4,3.86613764]
[1739487128719,5.32,2670.6,2670.4,3.86612764]
[1739487128917,5.32,2670.6,2670.4,7.61079764]
[1739487129384,7.571,2670.8,2670.4,7.61079764]
[1739487129886,7.571,2670.8,2670.4,3.86612764]
[1739487130887,7.571,2670.8,2670.4,7.61081764]
[1739487131489,7.571,2670.8,2670.4,3.86612764]
[1739487132055,7.571,2670.8,2670.4,7.61080764]
[1739487133498,7.571,2670.8,2670.4,3.86612764]
[1739487133703,7.571,2670.8,2670.4,7.61080764]
[1739487134296,7.571,2670.8,2670.4,3.86612764]
[1739487135002,11.3152,2670.8,2670.4,0.12146764]
[1739487135303,3.74434,2670.7,2670.3,3.74487]
[1739487135459,3.74434,2670.7,2670.4,0.12089453]
[1739487135657,1.75303357,2670.6,2670.4,0.12089453]
[1739487136979,4.00403357,2670.6,2670.4,0.12089453]
[1739487137312,4.00403357,2670.6,2670.3,3.74489]
[1739487137518,4.00403357,2670.6,2670.4,0.12033096]
[1739487138515,17.49934357,2670.5,2670.4,0.12033096]
[1739487138680,17.49934357,2670.5,2669.3,4.55973]
[1739487138681,2.251,2670.2,2669.3,4.55973]
[1739487138882,1.75303357,2670.0,2669.5,0.55]
[1739487139219,1.75303357,2670.0,2669.6,3.0]
[1739487139220,5.49836357,2670.0,2669.6,3.0]
[1739487139419,5.49836357,2670.0,2669.6,3.10420259]
[1739487139977,5.49836357,2670.0,2669.6,6.85006259]
[1739487140510,5.49835357,2670.0,2669.6,6.85006259]
[1739487140724,1.75303357,2670.0,2669.6,10.59585259]
[1739487140925,5.49837357,2670.0,2669.6,6.84999259]
[1739487141224,5.49837357,2670.0,2669.7,0.8112]
[1739487141385,1.75303357,2670.0,2669.7,0.8112]
[1739487141793,1.75303357,2670.0,2669.8,0.10420259]
[1739487142113,1.75303357,2670.0,2669.8,3.0]
[1739487142275,1.75303357,2670.0,2669.9,0.10420259]
[1739487146830,1.75303357,2670.0,2669.7,3.0]
[1739487147026,1.75303357,2670.0,2669.9,0.10445091]
[1739487147229,1.75303357,2670.0,2669.7,3.0]
[1739487147434,1.75303357,2670.0,2669.9,0.10445091]
[1739487147628,1.75303357,2670.0,2669.7,3.0]
[1739487147828,1.75303357,2670.0,2669.9,0.10445091]
[1739487148056,2.6097,2669.9,2669.7,3.0]
[1739487148206,2.6097,2669.9,2669.6,3.74577]
[1739487150551,2.6097,2669.9,2669.5,3.74601]
[1739487150920,6.35516,2669.9,2669.6,3.0]
[1739487151947,2.6097,2669.9,2669.2,3.7924]
[1739487152148,2.6097,2669.9,2669.6,3.74585]
[1739487154320,4.00403357,2669.8,2669.6,3.74585]
[1739487156760,4.00403357,2670.0,2669.7,4.54963]
[1739487156962,1.75303357,2670.2,2670.0,3.74519]
[1739487157175,1.75303357,2670.4,2670.1,4.923589]
[1739487157324,1.75303357,2670.4,2670.1,0.8039]
[1739487157823,1.75303357,2670.2,2670.1,0.8039]
[1739487158260,1.75303357,2670.2,2670.0,3.74519]
[1739487158463,1.75303357,2670.2,2669.9,3.0]
[1739487158628,1.75303357,2670.2,2670.0,0.7687]
[1739487159195,1.75303357,2670.2,2669.9,3.0]
[1739487159624,1.75303357,2670.2,2669.9,6.74543]
[1739487160055,1.75303357,2670.2,2669.9,3.0]
[1739487161863,2.251,2670.1,2669.9,3.0]
[1739487162165,2.251,2670.1,2669.8,3.0]
[1739487162870,2.251,2670.1,2669.9,0.10469922]
[1739487166452,0.3587,2670.0,2669.9,0.10469922]
[1739487166651,2.251,2670.1,2669.9,0.10469922]
[1739487166854,7.74889357,2670.4,2670.0,4.54788]
[1739487167261,7.74889357,2670.4,2670.1,0.10465146]
[1739487167754,4.00403357,2670.4,2670.1,0.10465146]
[1739487168497,1.75303357,2670.2,2670.1,0.10465146]
[1739487169149,4.00403357,2670.2,2670.1,0.10465146]
[1739487169994,8.10779357,2670.2,2670.1,0.10459415]
[1739487170374,8.10779357,2670.2,2669.8,3.0]
[1739487170555,1.75303357,2670.0,2669.6,4.53446]
[1739487170754,1.75303357,2670.0,2669.6,4.987856]
[1739487171384,1.75303357,2670.0,2669.7,3.74573]
[1739487171891,2.251,2669.9,2669.7,3.74573]
[1739487172300,2.251,2670.1,2669.8,3.74551]
[1739487173885,2.251,2670.1,2669.9,4.51695]
[1739487175390,2.251,2670.1,2670.0,3.74531]
[1739487176182,2.251,2670.3,2670.0,3.74531]
[1739487177800,2.251,2670.3,2670.1,0.10475653]
[1739487178971,2.251,2670.3,2669.9,4.51703]
[1739487179186,5.99589,2670.3,2670.2,0.10475653]
[1739487179387,2.251,2670.1,2669.7,7.57077]
[1739487179597,2.251,2670.1,2669.8,3.74559]
[1739487180404,2.251,2670.3,2670.0,3.74531]
[1739487180608,2.251,2670.1,2670.0,3.74531]
[1739487181301,5.49788357,2670.4,2670.0,4.50911]
[1739487181511,7.74888357,2670.4,2670.0,4.50911]
[1739487182280,7.74888357,2670.4,2670.0,0.7638]
[1739487185073,3.74491,2670.3,2670.0,0.7638]
[1739487185718,5.99591,2670.3,2670.0,0.7638]
[1739487186024,5.99591,2670.3,2669.9,3.74536]
[1739487186897,2.251,2670.3,2669.9,3.74536]
[1739487187293,2.251,2670.3,2670.0,3.74523]
[1739487187513,2.251,2670.3,2670.0,3.49523]
[1739487190828,5.99596,2670.3,2669.9,3.74543]
[1739487191029,2.251,2670.3,2669.9,3.74543]
[1739487192232,5.9959,2670.3,2669.9,3.74543]
[1739487192837,5.9959,2670.3,2670.0,0.10443179]
[1739487193336,2.251,2670.3,2670.0,0.10443179]
[1739487194133,5.99591,2670.3,2670.0,0.10443179]
[1739487199602,5.9959,2670.3,2670.0,0.10443179]
[1739487200869,2.251,2670.3,2670.0,0.10443179]
[1739487201167,2.251,2670.3,2670.0,3.84972179]
[1739487204161,4.00403357,2670.4,2670.1,0.7625]
[1739487204475,7.74880357,2670.4,2670.2,0.10449864]
[1739487204829,7.74880357,2670.4,2670.0,3.74528]
[1739487205176,0.3587,2670.3,2670.0,3.74528]
[1739487206530,0.3587,2670.3,2669.8,3.74551]
[1739487206730,0.3587,2670.3,2669.9,3.74535]
[1739487207672,0.3587,2670.3,2670.0,0.10449864]
[1739487207982,0.3587,2670.3,2670.0,3.74531]
[1739487208374,0.3587,2670.3,2670.1,0.10449864]
[1739487208830,7.74880357,2670.4,2670.1,0.10449864]
[1739487209766,9.32403357,2670.4,2670.1,0.10449864]
[1739487210644,9.32403357,2670.4,2670.1,3.84963864]
[1739487211190,9.32403357,2670.4,2670.1,0.10449864]
[1739487211191,13.06883357,2670.4,2670.1,0.10449864]
[1739487211397,13.06883357,2670.4,2670.0,3.74531]
[1739487211539,13.06883357,2670.4,2670.1,0.10445089]
[1739487212777,9.32403357,2670.4,2670.1,0.10445089]
[1739487212979,13.06878357,2670.4,2670.1,0.10445089]
[1739487214573,9.32403357,2670.4,2670.1,0.10445089]
[1739487215077,9.32403357,2670.4,2670.2,0.10445089]
[1739487215591,9.32403357,2670.4,2670.3,0.10445089]
[1739487215795,9.32403357,2670.4,2670.1,3.74515]
[1739487216091,9.32403357,2670.4,2670.2,0.10445089]
[1739487218551,9.32403357,2670.4,2670.2,3.84940089]
[1739487218552,7.571,2670.4,2670.2,3.84940089]
[1739487220489,7.571,2670.4,2670.2,0.10445089]
[1739487220867,9.32403357,2670.4,2670.0,3.74521]
[1739487221083,9.32403357,2670.4,2670.3,0.10445089]
[1739487221276,9.32403357,2670.4,2670.0,3.74521]
[1739487221483,9.32403357,2670.4,2670.3,0.10445089]
[1739487221687,9.32403357,2670.4,2670.0,7.49044]
[1739487221854,9.32403357,2670.4,2670.3,0.10444132]
[1739487222053,9.32403357,2670.4,2670.0,7.49044]
[1739487222254,9.32403357,2670.4,2670.3,0.10444132]
[1739487222553,9.32403357,2670.4,2670.0,7.49044]
[1739487222749,9.32403357,2670.4,2670.3,0.10444132]
[1739487223180,9.32403357,2670.4,2669.9,0.7877]
[1739487223495,9.32403357,2670.4,2670.0,7.59497132]
[1739487224194,9.32403357,2670.4,2670.0,0.10444132]
[1739487224396,4.00403357,2670.1,2670.0,0.10444132]
[1739487224566,4.00403357,2670.1,2670.0,0.10443177]
[1739487224762,4.00403357,2670.1,2669.8,3.74548]
[1739487225094,4.00403357,2670.1,2669.9,0.10453684]
[1739487225765,4.00403357,2670.1,2669.9,3.84992684]
[1739487227395,9.32403357,2670.1,2669.9,0.10453684]
[1739487227564,9.32403357,2670.1,2670.0,3.74531]
[1739487227781,9.32403357,2670.1,2670.0,3.84984684]
[1739487229695,9.32403357,2670.1,2670.0,4.63084684]
[1739487230803,7.571,2670.1,2670.0,4.63084684]
[1739487237265,7.571,2670.1,2670.0,5.46847652]
[1739487247370,7.571,2670.1,2670.0,8.46847652]
[1739487248068,5.32,2670.1,2670.0,8.46847652]
[1739487251309,4.00403357,2670.5,2670.4,3.74475]
[1739487251680,2.251,2670.5,2670.4,3.84915312]
[1739487255273,2.251,2670.5,2670.4,4.68554843]
[1739487260320,2.251,2670.5,2670.4,5.46054843]
[1739487260478,2.251,2670.5,2670.4,8.46054843]
[1739487264375,2.251,2670.5,2670.4,6.84915312]
[1739487265748,5.32,2670.6,2670.5,3.74461]
[1739487265895,5.32,2670.6,2670.5,4.51531]
[1739487266099,9.32403357,2670.7,2670.6,3.74447]
[1739487266545,9.32403357,2670.7,2670.6,3.84852934]
[1739487266905,9.32403357,2670.7,2670.6,4.98491327]
[1739487269629,7.571,2670.7,2670.6,4.98491327]
[1739487271246,3.74378,2671.1,2670.6,4.98491327]
[1739487271247,7.571,2671.0,2670.7,0.7977]
[1739487271452,3.57240688,2671.8,2671.0,0.7977]
[1739487271653,3.21370688,2671.8,2671.7,6.74293]
[1739487271804,0.3587,2672.0,2671.9,3.74265]
[1739487272007,1.75303357,2672.1,2672.0,3.74251]
[1739487272523,1.75303357,2672.1,2672.0,4.59436924]
[1739487273045,1.75303357,2672.3,2672.0,4.59436924]
[1739487273356,0.3587,2672.8,2672.1,0.7805]
[1739487273532,0.3587,2672.8,2672.6,3.74155]
[1739487273718,1.75303357,2673.0,2672.8,3.74133]
[1739487273922,1.75303357,2673.0,2672.9,3.74125]
[1739487274118,1.75303357,2673.0,2672.9,3.84247481]
[1739487274318,0.3587,2673.4,2672.9,3.84247481]
[1739487274319,1.75303357,2673.2,2672.9,3.84247481]
[1739487274523,1.75303357,2673.2,2672.9,7.58363481]
[1739487274719,1.75303357,2673.2,2672.9,3.84238481]
[1739487274935,1.75303357,2673.2,2672.9,4.26403659]
[1739487275309,1.75303357,2673.2,2673.0,3.74101]
[1739487275547,1.75303357,2673.2,2673.1,3.74097]
[1739487275764,0.3587,2673.4,2673.1,3.84168945]
[1739487276768,1.57629,2673.6,2673.3,3.74068]
[1739487276977,1.57629,2673.6,2673.3,1.13601694]
[1739487277185,1.57629,2673.6,2673.4,3.10030005]
[1739487277330,1.57629,2673.6,2673.4,6.84084005]
[1739487277832,0.3587,2673.9,2673.4,0.10030005]
[1739487278068,0.3587,2673.9,2673.5,3.74029]
[1739487278238,0.3587,2673.9,2673.6,3.8387396]
[1739487279576,5.18485405,2674.1,2673.6,0.0984696]
[1739487279765,5.18485405,2674.1,2673.7,3.74003]
[1739487279964,5.18485405,2674.1,2673.6,0.8698696]
[1739487279965,5.18485405,2674.1,2673.6,0.0984696]
[1739487280291,8.92443405,2674.1,2673.6,3.74018]
[1739487280451,8.92443405,2674.1,2673.7,0.09452539]
[1739487281239,5.18485405,2674.1,2673.7,0.09452539]
[1739487283959,0.3587,2674.0,2673.7,0.09452539]
[1739487286898,1.93499,2674.0,2673.7,0.09452539]
[1739487287392,1.57629,2674.0,2673.7,3.83462539]
[1739487290387,1.57629,2674.0,2673.7,0.09452539]
[1739487290959,1.57629,2674.0,2673.7,3.83465539]
[1739487292805,5.3158,2674.2,2673.7,3.83465539]
[1739487293574,9.05535,2674.2,2673.7,3.83465539]
[1739487293775,5.3158,2674.2,2673.7,3.83465539]
[1739487295579,3.73963,2674.1,2673.7,0.09452539]
[1739487295795,5.3158,2674.2,2673.7,3.83458539]
[1739487296198,5.3158,2674.2,2673.7,4.58948539]
[1739487296580,9.05531,2674.2,2673.7,4.58948539]
[1739487296983,3.73972,2674.0,2673.7,0.09452539]
[1739487297327,3.60856405,2673.8,2673.7,0.09452539]
[1739487297802,3.60856405,2673.8,2673.4,4.54747]
[1739487297971,3.60856405,2673.8,2673.7,0.09043882]
[1739487298172,3.60856405,2673.8,2673.4,4.54747]
[1739487298377,3.60856405,2673.8,2673.7,0.09043882]
[1739487298577,3.60856405,2673.8,2673.4,4.54747]
[1739487298777,3.60856405,2673.8,2673.7,0.09043882]
[1739487299009,3.60856405,2673.8,2673.5,3.0]
[1739487299214,3.60856405,2673.8,2673.7,0.09043882]
[1739487299670,3.60856405,2673.8,2673.5,3.0]
[1739487299867,3.60856405,2673.8,2673.6,0.09043882]
[1739487300266,7.70726405,2673.8,2673.6,0.09043882]
[1739487300493,7.70727405,2673.8,2673.6,0.09043882]
[1739487300709,7.70727405,2673.8,2673.5,3.0]
[1739487300918,7.70727405,2673.8,2673.6,0.09031497]
[1739487301079,7.70727405,2673.8,2673.1,0.811]
[1739487301276,9.28356405,2673.8,2673.3,6.74062]
[1739487301779,9.28356405,2673.8,2673.4,0.09031497]
[1739487301983,1.57629,2673.8,2673.5,3.0]
[1739487302175,1.57629,2673.8,2673.5,3.74031]
[1739487302413,1.57629,2673.8,2673.6,3.74026]
[1739487302631,1.57629,2673.8,2673.6,4.66267497]
[1739487302942,1.57629,2673.8,2673.7,3.74013]
[1739487303236,7.34815405,2674.1,2673.7,3.74013]
[1739487303443,11.08784405,2674.1,2673.7,0.09041973]
[1739487303833,7.34815405,2674.1,2673.7,0.09041973]
[1739487304116,7.34815405,2674.1,2673.7,3.83052973]
[1739487305350,11.08786405,2674.1,2673.7,0.09041973]
[1739487306120,7.34815405,2674.1,2673.7,0.09041973]
[1739487306621,3.73976,2674.0,2673.7,0.09041973]
[1739487308331,3.73988,2673.9,2673.7,0.09041973]
[1739487308822,3.73988,2673.9,2673.5,3.74031]
[1739487309308,3.73988,2673.9,2673.6,0.09041973]
[1739487309687,1.74899104,2673.8,2673.6,0.09041973]
[1739487317296,1.74899104,2673.8,2673.4,3.814]
[1739487317501,1.74899104,2673.8,2673.5,3.83089641]
[1739487320898,3.73988,2673.9,2673.5,3.83089641]
[1739487322140,3.73979,2674.0,2673.6,3.74023]